[Event "Titled Tuesday Blitz March 14 Early 2023"]
[White "Aditya Mittal"]
[Black "Lenderman, Aleksandr"]
[WhiteFideId "35042025"]
[BlackFideId "2021285"]
[WhiteElo "2396"]
[BlackElo "2607"]
[Result "1-0"]
[Round "06"]
[TimeControl "180+2"]
[Date "2023.03.14"]
[WhiteClock "0:00:09"]
[BlackClock "0:00:05"]

1. d4 {[%clk 0:03:00]}  e6 {[%clk 0:03:00]} 2. c4 {[%clk 0:02:57]}  b6 {[%clk 0:03:01]} 3. e4 {[%clk 0:02:57]}  Bb4+ {[%clk 0:03:00]} 4. Bd2 {[%clk 0:02:55]}  Bxd2+ {[%clk 0:03:00]} 5. Qxd2 {[%clk 0:02:53]}  d5 {[%clk 0:03:00]} 6. cxd5 {[%clk 0:02:52]}  exd5 {[%clk 0:03:01]} 7. e5 {[%clk 0:02:51]}  Ne7 {[%clk 0:03:01]} 8. Nc3 {[%clk 0:02:50]}  O-O {[%clk 0:03:01]} 9. f4 {[%clk 0:02:50]}  c5 {[%clk 0:03:01]} 10. Nf3 {[%clk 0:02:51]}  Nbc6 {[%clk 0:03:00]} 11. Be2 {[%clk 0:02:41]}  Bg4 {[%clk 0:02:59]} 12. dxc5 {[%clk 0:02:39]}  bxc5 {[%clk 0:03:00]} 13. h3 {[%clk 0:02:27]}  Bxf3 {[%clk 0:02:58]} 14. Bxf3 {[%clk 0:02:28]}  Nd4 {[%clk 0:02:58]} 15. O-O {[%clk 0:02:25]}  Rb8 {[%clk 0:02:57]} 16. Rad1 {[%clk 0:02:23]}  Nxf3+ {[%clk 0:02:51]} 17. Rxf3 {[%clk 0:02:24]}  d4 {[%clk 0:02:52]} 18. Ne4 {[%clk 0:02:20]}  Qd5 {[%clk 0:02:51]} 19. Qc2 {[%clk 0:01:27]}  Rfc8 {[%clk 0:02:41]} 20. Nd6 {[%clk 0:01:08]}  Rc6 {[%clk 0:02:33]} 21. b3 {[%clk 0:01:08]}  Rd8 {[%clk 0:02:20]} 22. Qc4 {[%clk 0:01:05]}  Qxc4 {[%clk 0:02:19]} 23. Nxc4 {[%clk 0:01:06]}  Nd5 {[%clk 0:02:17]} 24. Kf2 {[%clk 0:01:03]}  Rb8 {[%clk 0:02:15]} 25. Re1 {[%clk 0:00:48]}  a5 {[%clk 0:02:13]} 26. f5 {[%clk 0:00:47]}  Ra6 {[%clk 0:02:11]} 27. e6 {[%clk 0:00:44]}  f6 {[%clk 0:02:11]} 28. a4 {[%clk 0:00:29]}  Kf8 {[%clk 0:02:11]} 29. Rg3 {[%clk 0:00:27]}  Ne7 {[%clk 0:02:09]} 30. Rf3 {[%clk 0:00:27]}  Rd8 {[%clk 0:02:00]} 31. g4 {[%clk 0:00:27]}  Rd5 {[%clk 0:02:00]} 32. Rc1 {[%clk 0:00:23]}  Ke8 {[%clk 0:01:57]} 33. Nd2 {[%clk 0:00:20]}  Nc6 {[%clk 0:01:47]} 34. Ne4 {[%clk 0:00:16]}  Ne5 {[%clk 0:01:47]} 35. Rg3 {[%clk 0:00:17]}  Rc6 {[%clk 0:01:39]} 36. g5 {[%clk 0:00:17]}  fxg5 {[%clk 0:01:38]} 37. f6 {[%clk 0:00:18]}  g6 {[%clk 0:01:14]} 38. Nxg5 {[%clk 0:00:19]}  Nd3+ {[%clk 0:01:02]} 39. Rxd3 {[%clk 0:00:19]}  Rxg5 {[%clk 0:01:03]} 40. f7+ {[%clk 0:00:20]}  Kf8 {[%clk 0:00:58]} 41. Re1 {[%clk 0:00:13]}  Rc7 {[%clk 0:00:59]} 42. Rf3 {[%clk 0:00:11]}  Re7 {[%clk 0:00:58]} 43. Re4 {[%clk 0:00:09]}  Rd5 {[%clk 0:00:55]} 44. Ke2 {[%clk 0:00:10]}  Rd6 {[%clk 0:00:56]} 45. Rf6 {[%clk 0:00:10]}  Rb6 {[%clk 0:00:41]} 46. Re5 {[%clk 0:00:09]}  Rxb3 {[%clk 0:00:41]} 47. Kd2 {[%clk 0:00:06]}  c4 {[%clk 0:00:20]} 48. Rd5 {[%clk 0:00:05]}  c3+ {[%clk 0:00:21]} 49. Kd3 {[%clk 0:00:05]}  Rb8 {[%clk 0:00:20]} 50. Rxd4 {[%clk 0:00:06]}  Rc8 {[%clk 0:00:20]} 51. Kc2 {[%clk 0:00:06]}  Kg7 {[%clk 0:00:21]} 52. Rdf4 {[%clk 0:00:04]}  Rf8 {[%clk 0:00:18]} 53. h4 {[%clk 0:00:04]}  Rc7 {[%clk 0:00:17]} 54. Rf1 {[%clk 0:00:03]}  h6 {[%clk 0:00:17]} 55. R6f4 {[%clk 0:00:04]}  g5 {[%clk 0:00:15]} 56. Re4 {[%clk 0:00:04]}  Re7 {[%clk 0:00:12]} 57. hxg5 {[%clk 0:00:05]}  hxg5 {[%clk 0:00:12]} 58. Re5 {[%clk 0:00:06]}  Kg6 {[%clk 0:00:12]} 59. Rff5 {[%clk 0:00:07]}  g4 {[%clk 0:00:11]} 60. Rf1 {[%clk 0:00:06]}  g3 {[%clk 0:00:11]} 61. Re3 {[%clk 0:00:06]}  g2 {[%clk 0:00:06]} 62. Rg3+ {[%clk 0:00:07]}  Kh5 {[%clk 0:00:07]} 63. Rxg2 {[%clk 0:00:08]}  Rxe6 {[%clk 0:00:05]} 64. Rh1# {[%clk 0:00:09]} 1-0


[Site "https://www.chess.com"]

[Event "Titled Tuesday Blitz March 14 Early 2023"]
[White "Firouzja, Alireza"]
[Black "Drygalov, Andrey"]
[WhiteFideId "12573981"]
[BlackFideId "24171735"]
[WhiteElo "2904"]
[BlackElo "2471"]
[Result "1-0"]
[Round "06"]
[TimeControl "180+2"]
[Date "2023.03.14"]
[WhiteClock "0:00:06"]
[BlackClock "0:00:03"]

1. d4 {[%clk 0:02:57]}  Nf6 {[%clk 0:02:59]} 2. c4 {[%clk 0:02:54]}  e6 {[%clk 0:03:00]} 3. a3 {[%clk 0:02:52]}  d5 {[%clk 0:02:59]} 4. e3 {[%clk 0:02:50]}  b6 {[%clk 0:02:57]} 5. cxd5 {[%clk 0:02:47]}  exd5 {[%clk 0:02:56]} 6. Bd3 {[%clk 0:02:47]}  Bd6 {[%clk 0:02:57]} 7. Nc3 {[%clk 0:02:46]}  O-O {[%clk 0:02:53]} 8. Nge2 {[%clk 0:02:37]}  Bb7 {[%clk 0:02:51]} 9. O-O {[%clk 0:02:37]}  Nbd7 {[%clk 0:02:48]} 10. f3 {[%clk 0:02:35]}  Re8 {[%clk 0:02:47]} 11. Bd2 {[%clk 0:02:29]}  c5 {[%clk 0:02:47]} 12. Rc1 {[%clk 0:02:29]}  a6 {[%clk 0:02:47]} 13. Kh1 {[%clk 0:02:23]}  Rc8 {[%clk 0:02:46]} 14. g4 {[%clk 0:02:23]}  cxd4 {[%clk 0:02:39]} 15. exd4 {[%clk 0:02:23]}  Ne4 {[%clk 0:02:36]} 16. Be1 {[%clk 0:01:41]}  Qf6 {[%clk 0:02:30]} 17. Kg2 {[%clk 0:01:38]}  Nxc3 {[%clk 0:01:52]} 18. Nxc3 {[%clk 0:01:38]}  b5 {[%clk 0:01:48]} 19. Bg3 {[%clk 0:01:36]}  Nb6 {[%clk 0:01:46]} 20. Bxd6 {[%clk 0:01:23]}  Qxd6 {[%clk 0:01:46]} 21. Qd2 {[%clk 0:00:58]}  Nc4 {[%clk 0:01:38]} 22. Bxc4 {[%clk 0:00:58]}  dxc4 {[%clk 0:01:38]} 23. d5 {[%clk 0:00:59]}  Rcd8 {[%clk 0:01:35]} 24. Rcd1 {[%clk 0:00:58]}  h6 {[%clk 0:01:35]} 25. Rfe1 {[%clk 0:00:58]}  Rxe1 {[%clk 0:01:21]} 26. Rxe1 {[%clk 0:00:58]}  a5 {[%clk 0:01:21]} 27. Nxb5 {[%clk 0:00:35]}  Qxd5 {[%clk 0:01:20]} 28. Qxd5 {[%clk 0:00:36]}  Rxd5 {[%clk 0:01:20]} 29. Nc3 {[%clk 0:00:36]}  Rd2+ {[%clk 0:01:14]} 30. Re2 {[%clk 0:00:36]}  Rd3 {[%clk 0:01:10]} 31. Rf2 {[%clk 0:00:37]}  g5 {[%clk 0:01:04]} 32. Kg3 {[%clk 0:00:30]}  Kg7 {[%clk 0:01:03]} 33. h4 {[%clk 0:00:30]}  f5 {[%clk 0:00:59]} 34. hxg5 {[%clk 0:00:24]}  hxg5 {[%clk 0:01:00]} 35. gxf5 {[%clk 0:00:24]}  Kf6 {[%clk 0:00:47]} 36. Kg4 {[%clk 0:00:24]}  Rd4+ {[%clk 0:00:37]} 37. f4 {[%clk 0:00:24]}  Bc8 {[%clk 0:00:37]} 38. Kg3 {[%clk 0:00:20]}  Bxf5 {[%clk 0:00:36]} 39. fxg5+ {[%clk 0:00:18]}  Kxg5 {[%clk 0:00:36]} 40. Kf3 {[%clk 0:00:16]}  Rd3+ {[%clk 0:00:35]} 41. Ke2 {[%clk 0:00:15]}  Bg4+ {[%clk 0:00:35]} 42. Ke1 {[%clk 0:00:16]}  Bf5 {[%clk 0:00:26]} 43. Ke2 {[%clk 0:00:09]}  Kf6 {[%clk 0:00:19]} 44. Ke1 {[%clk 0:00:08]}  Ke5 {[%clk 0:00:18]} 45. Re2+ {[%clk 0:00:09]}  Kd6 {[%clk 0:00:11]} 46. Re8 {[%clk 0:00:08]}  Bd7 {[%clk 0:00:09]} 47. Ra8 {[%clk 0:00:08]}  Rh3 {[%clk 0:00:09]} 48. Rxa5 {[%clk 0:00:07]}  Rh1+ {[%clk 0:00:09]} 49. Kd2 {[%clk 0:00:07]}  Rh2+ {[%clk 0:00:10]} 50. Kc1 {[%clk 0:00:08]}  Rh1+ {[%clk 0:00:10]} 51. Kc2 {[%clk 0:00:08]}  Be8 {[%clk 0:00:08]} 52. Ra6+ {[%clk 0:00:07]}  Kc7 {[%clk 0:00:07]} 53. Re6 {[%clk 0:00:05]}  Bd7 {[%clk 0:00:07]} 54. Re5 {[%clk 0:00:05]}  Kd6 {[%clk 0:00:08]} 55. Rd5+ {[%clk 0:00:06]}  Kc6 {[%clk 0:00:08]} 56. Rg5 {[%clk 0:00:05]}  Rf1 {[%clk 0:00:07]} 57. a4 {[%clk 0:00:05]}  Bf5+ {[%clk 0:00:07]} 58. Kd2 {[%clk 0:00:05]}  Kd6 {[%clk 0:00:07]} 59. a5 {[%clk 0:00:05]}  Ke6 {[%clk 0:00:06]} 60. Rh5 {[%clk 0:00:05]}  Ra1 {[%clk 0:00:06]} 61. Rh6+ {[%clk 0:00:05]}  Ke5 {[%clk 0:00:06]} 62. Ra6 {[%clk 0:00:05]}  Rf1 {[%clk 0:00:05]} 63. Rb6 {[%clk 0:00:04]}  Rf2+ {[%clk 0:00:05]} 64. Ke3 {[%clk 0:00:04]}  Rf1 {[%clk 0:00:03]} 65. Rb5+ {[%clk 0:00:05]}  Ke6 {[%clk 0:00:03]} 66. Kd4 {[%clk 0:00:06]}  Bd3 {[%clk 0:00:03]} 67. Rb6+ {[%clk 0:00:06]}  Kd7 {[%clk 0:00:03]} 68. a6 {[%clk 0:00:06]}  Ra1 {[%clk 0:00:03]} 69. Kc5 {[%clk 0:00:06]}  Ra5+ {[%clk 0:00:02]} 70. Kb4 {[%clk 0:00:07]}  Ra1 {[%clk 0:00:02]} 71. Kb5 {[%clk 0:00:07]}  Kc7 {[%clk 0:00:02]} 72. Kc5 {[%clk 0:00:06]}  Ra5+ {[%clk 0:00:01]} 73. Nb5+ {[%clk 0:00:07]}  Kc8 {[%clk 0:00:02]} 74. a7 {[%clk 0:00:05]}  c3 {[%clk 0:00:03]} 75. bxc3 {[%clk 0:00:05]}  Bxb5 {[%clk 0:00:03]} 76. Rb8+ {[%clk 0:00:06]}  Kc7 {[%clk 0:00:03]} 77. a8=Q {[%clk 0:00:06]} 1-0


[Site "https://www.chess.com"]

[Event "Titled Tuesday Blitz March 14 Early 2023"]
[White "Bortnyk, Olexandr"]
[Black "Zahid, Sanatan"]
[WhiteFideId "14120828"]
[BlackFideId "10201963"]
[WhiteElo "2734"]
[BlackElo "1865"]
[Result "0-1"]
[Round "06"]
[TimeControl "180+2"]
[Date "2023.03.14"]
[WhiteClock "0:00:02"]
[BlackClock "0:00:50"]

1. d4 {[%clk 0:03:00]}  e6 {[%clk 0:02:59]} 2. Nc3 {[%clk 0:03:00]}  Nf6 {[%clk 0:02:55]} 3. e4 {[%clk 0:02:59]}  d5 {[%clk 0:02:55]} 4. Bg5 {[%clk 0:02:59]}  Be7 {[%clk 0:02:54]} 5. e5 {[%clk 0:02:59]}  Nfd7 {[%clk 0:02:54]} 6. h4 {[%clk 0:03:00]}  h6 {[%clk 0:02:54]} 7. Bxe7 {[%clk 0:02:55]}  Qxe7 {[%clk 0:02:55]} 8. Qg4 {[%clk 0:02:55]}  O-O {[%clk 0:02:54]} 9. f4 {[%clk 0:02:35]}  c5 {[%clk 0:02:29]} 10. O-O-O {[%clk 0:02:32]}  Nc6 {[%clk 0:02:28]} 11. Nf3 {[%clk 0:02:32]}  f5 {[%clk 0:02:19]} 12. Qg6 {[%clk 0:02:30]}  cxd4 {[%clk 0:02:14]} 13. Nb5 {[%clk 0:02:13]}  Qf7 {[%clk 0:02:10]} 14. Qxf7+ {[%clk 0:01:52]}  Kxf7 {[%clk 0:02:11]} 15. Nd6+ {[%clk 0:01:46]}  Ke7 {[%clk 0:02:10]} 16. Bb5 {[%clk 0:01:46]}  Nc5 {[%clk 0:02:00]} 17. Bxc6 {[%clk 0:01:42]}  bxc6 {[%clk 0:02:01]} 18. Nxd4 {[%clk 0:01:42]}  Bd7 {[%clk 0:01:58]} 19. Rh3 {[%clk 0:01:42]}  Ne4 {[%clk 0:01:47]} 20. Nxe4 {[%clk 0:01:02]}  fxe4 {[%clk 0:01:48]} 21. Rg3 {[%clk 0:01:02]}  Rxf4 {[%clk 0:01:43]} 22. Rxg7+ {[%clk 0:00:58]}  Rf7 {[%clk 0:01:43]} 23. Rg6 {[%clk 0:00:52]}  c5 {[%clk 0:01:41]} 24. Nb3 {[%clk 0:00:50]}  Rc8 {[%clk 0:01:41]} 25. Rxh6 {[%clk 0:00:48]}  d4 {[%clk 0:01:38]} 26. Nd2 {[%clk 0:00:45]}  Bc6 {[%clk 0:01:36]} 27. Nc4 {[%clk 0:00:44]}  Rcf8 {[%clk 0:01:31]} 28. Nd6 {[%clk 0:00:30]}  Rg7 {[%clk 0:01:30]} 29. b4 {[%clk 0:00:23]}  Rf2 {[%clk 0:00:52]} 30. bxc5 {[%clk 0:00:23]}  Rgxg2 {[%clk 0:00:52]} 31. Rh7+ {[%clk 0:00:16]}  Kf8 {[%clk 0:00:50]} 32. Kb2 {[%clk 0:00:01]}  Rxc2+ {[%clk 0:00:51]} 33. Kb3 {[%clk 0:00:02]}  Bd5+ {[%clk 0:00:50]} 34. Kb4 {[%clk 0:00:01]}  Rb2+ {[%clk 0:00:50]} 35. Ka5 {[%clk 0:00:01]}  Rxa2+ {[%clk 0:00:50]} 36. Kb5 {[%clk 0:00:02]}  Rgb2# {[%clk 0:00:50]} 0-1


[Site "https://www.chess.com"]

[Event "Titled Tuesday Blitz March 14 Early 2023"]
[White "Vokhidov, Shamsiddin"]
[Black "Lobanov, Sergei"]
[WhiteFideId "14204223"]
[BlackFideId "24183750"]
[WhiteElo "2570"]
[BlackElo "2489"]
[Result "0-1"]
[Round "06"]
[TimeControl "180+2"]
[Date "2023.03.14"]
[WhiteClock "0:00:03"]
[BlackClock "0:00:04"]

1. e4 {[%clk 0:03:00]}  e5 {[%clk 0:02:59]} 2. Nf3 {[%clk 0:03:01]}  Nc6 {[%clk 0:02:59]} 3. Nc3 {[%clk 0:03:02]}  Nf6 {[%clk 0:02:58]} 4. a3 {[%clk 0:03:02]}  Be7 {[%clk 0:02:49]} 5. d4 {[%clk 0:03:01]}  exd4 {[%clk 0:02:45]} 6. Nxd4 {[%clk 0:03:02]}  O-O {[%clk 0:02:45]} 7. Nxc6 {[%clk 0:03:02]}  bxc6 {[%clk 0:02:34]} 8. e5 {[%clk 0:03:02]}  Ne8 {[%clk 0:02:34]} 9. Bd3 {[%clk 0:03:01]}  d6 {[%clk 0:02:32]} 10. Qh5 {[%clk 0:02:42]}  g6 {[%clk 0:02:18]} 11. Qe2 {[%clk 0:02:42]}  Ng7 {[%clk 0:02:01]} 12. O-O {[%clk 0:02:32]}  Rb8 {[%clk 0:02:01]} 13. Rd1 {[%clk 0:02:14]}  Be6 {[%clk 0:01:57]} 14. b3 {[%clk 0:02:07]}  d5 {[%clk 0:01:22]} 15. Bh6 {[%clk 0:02:03]}  c5 {[%clk 0:01:13]} 16. Na4 {[%clk 0:01:55]}  c6 {[%clk 0:01:04]} 17. Be3 {[%clk 0:01:44]}  Qa5 {[%clk 0:00:57]} 18. Qd2 {[%clk 0:01:31]}  Qxd2 {[%clk 0:00:55]} 19. Rxd2 {[%clk 0:01:32]}  d4 {[%clk 0:00:51]} 20. Bh6 {[%clk 0:01:31]}  c4 {[%clk 0:00:44]} 21. Bxc4 {[%clk 0:01:22]}  Bxc4 {[%clk 0:00:44]} 22. bxc4 {[%clk 0:01:23]}  Rfd8 {[%clk 0:00:41]} 23. Bxg7 {[%clk 0:01:19]}  Kxg7 {[%clk 0:00:41]} 24. f4 {[%clk 0:01:14]}  f6 {[%clk 0:00:26]} 25. exf6+ {[%clk 0:01:07]}  Kxf6 {[%clk 0:00:24]} 26. Kf2 {[%clk 0:01:04]}  Kf5 {[%clk 0:00:21]} 27. Kf3 {[%clk 0:01:04]}  h5 {[%clk 0:00:21]} 28. g3 {[%clk 0:00:47]}  g5 {[%clk 0:00:18]} 29. Re2 {[%clk 0:00:45]}  Bf6 {[%clk 0:00:14]} 30. Rd1 {[%clk 0:00:30]}  g4+ {[%clk 0:00:13]} 31. Kf2 {[%clk 0:00:27]}  h4 {[%clk 0:00:13]} 32. Nc5 {[%clk 0:00:23]}  Rb2 {[%clk 0:00:13]} 33. Ne6 {[%clk 0:00:13]}  Rh8 {[%clk 0:00:10]} 34. Nxd4+ {[%clk 0:00:12]}  Bxd4+ {[%clk 0:00:10]} 35. Rxd4 {[%clk 0:00:13]}  hxg3+ {[%clk 0:00:11]} 36. Kxg3 {[%clk 0:00:07]}  Rh3+ {[%clk 0:00:11]} 37. Kg2 {[%clk 0:00:08]}  Rc3 {[%clk 0:00:10]} 38. Re5+ {[%clk 0:00:07]}  Kf6 {[%clk 0:00:11]} 39. Re2 {[%clk 0:00:06]}  Rcxc2 {[%clk 0:00:10]} 40. Rxc2 {[%clk 0:00:07]}  Rxc2+ {[%clk 0:00:11]} 41. Kg3 {[%clk 0:00:08]}  Kf5 {[%clk 0:00:12]} 42. Rd3 {[%clk 0:00:06]}  Rxc4 {[%clk 0:00:12]} 43. Re3 {[%clk 0:00:06]}  Rxf4 {[%clk 0:00:12]} 44. Rc3 {[%clk 0:00:06]}  Ra4 {[%clk 0:00:10]} 45. Rc5+ {[%clk 0:00:06]}  Ke4 {[%clk 0:00:08]} 46. Kxg4 {[%clk 0:00:06]}  Kd4 {[%clk 0:00:06]} 47. Rc1 {[%clk 0:00:03]}  c5 {[%clk 0:00:07]} 48. h4 {[%clk 0:00:04]}  c4 {[%clk 0:00:06]} 49. h5 {[%clk 0:00:04]}  Ra6 {[%clk 0:00:06]} 50. Kg5 {[%clk 0:00:04]}  Rxa3 {[%clk 0:00:04]} 51. Rh1 {[%clk 0:00:02]}  Rg3+ {[%clk 0:00:03]} 52. Kf6 {[%clk 0:00:03]}  c3 {[%clk 0:00:03]} 53. h6 {[%clk 0:00:03]}  Rg8 {[%clk 0:00:04]} 54. h7 {[%clk 0:00:03]}  Rb8 {[%clk 0:00:04]} 0-1


[Site "https://www.chess.com"]

[Event "Titled Tuesday Blitz March 14 Early 2023"]
[White "Cherniaiev, Tykhon"]
[Black "Talibov, Shiroghlan"]
[WhiteFideId "14182360"]
[BlackFideId "13429078"]
[WhiteElo "2450"]
[BlackElo "2218"]
[Result "1/2-1/2"]
[Round "06"]
[TimeControl "180+2"]
[Date "2023.03.14"]
[WhiteClock "0:00:35"]
[BlackClock "0:00:32"]

1. Nf3 {[%clk 0:03:00]}  c5 {[%clk 0:02:58]} 2. c4 {[%clk 0:02:58]}  g6 {[%clk 0:02:56]} 3. g3 {[%clk 0:02:57]}  Bg7 {[%clk 0:02:56]} 4. Bg2 {[%clk 0:02:58]}  Nc6 {[%clk 0:02:57]} 5. O-O {[%clk 0:02:58]}  e6 {[%clk 0:02:58]} 6. Nc3 {[%clk 0:02:57]}  Nge7 {[%clk 0:02:57]} 7. d4 {[%clk 0:02:55]}  cxd4 {[%clk 0:02:58]} 8. Nb5 {[%clk 0:02:54]}  O-O {[%clk 0:02:57]} 9. Nbxd4 {[%clk 0:02:51]}  d5 {[%clk 0:02:55]} 10. cxd5 {[%clk 0:02:51]}  Nxd4 {[%clk 0:02:51]} 11. Nxd4 {[%clk 0:02:50]}  Nxd5 {[%clk 0:02:52]} 12. e4 {[%clk 0:02:44]}  Nb6 {[%clk 0:02:44]} 13. Nb3 {[%clk 0:02:33]}  Bd7 {[%clk 0:02:39]} 14. Qe2 {[%clk 0:02:29]}  Qe7 {[%clk 0:02:26]} 15. Be3 {[%clk 0:02:25]}  Rac8 {[%clk 0:02:26]} 16. Rac1 {[%clk 0:02:24]}  Na4 {[%clk 0:02:21]} 17. Rxc8 {[%clk 0:01:42]}  Rxc8 {[%clk 0:02:22]} 18. Rc1 {[%clk 0:01:43]}  Rxc1+ {[%clk 0:02:11]} 19. Bxc1 {[%clk 0:01:43]}  Bc6 {[%clk 0:01:56]} 20. Be3 {[%clk 0:01:37]}  Nxb2 {[%clk 0:01:49]} 21. Nd4 {[%clk 0:01:08]}  Qa3 {[%clk 0:01:38]} 22. Nxc6 {[%clk 0:01:03]}  bxc6 {[%clk 0:01:39]} 23. Qc2 {[%clk 0:00:51]}  Qxa2 {[%clk 0:00:54]} 24. Qxc6 {[%clk 0:00:49]}  Bf8 {[%clk 0:00:41]} 25. Qa8 {[%clk 0:00:41]}  Qa1+ {[%clk 0:00:32]} 26. Bf1 {[%clk 0:00:40]}  Qa3 {[%clk 0:00:33]} 27. Qxa7 {[%clk 0:00:38]}  Qxa7 {[%clk 0:00:31]} 28. Bxa7 {[%clk 0:00:39]}  Na4 {[%clk 0:00:32]} 29. Bd4 {[%clk 0:00:35]} 1/2-1/2


[Site "https://www.chess.com"]

[Event "Titled Tuesday Blitz March 14 Early 2023"]
[White "Ider, Borya"]
[Black "Atakhan, Abtin"]
[WhiteFideId "4901134"]
[BlackFideId "22502203"]
[WhiteElo "2512"]
[BlackElo "2008"]
[Result "1-0"]
[Round "06"]
[TimeControl "180+2"]
[Date "2023.03.14"]
[WhiteClock "0:00:50"]
[BlackClock "0:00:03"]

1. d4 {[%clk 0:03:00]}  Nf6 {[%clk 0:03:00]} 2. Nf3 {[%clk 0:03:01]}  g6 {[%clk 0:02:58]} 3. g3 {[%clk 0:03:01]}  Bg7 {[%clk 0:02:59]} 4. Bg2 {[%clk 0:03:02]}  O-O {[%clk 0:03:00]} 5. O-O {[%clk 0:03:03]}  d5 {[%clk 0:03:00]} 6. Bf4 {[%clk 0:03:02]}  c6 {[%clk 0:02:53]} 7. Qc1 {[%clk 0:03:01]}  Bf5 {[%clk 0:02:51]} 8. c3 {[%clk 0:03:00]}  Re8 {[%clk 0:02:48]} 9. Nbd2 {[%clk 0:03:00]}  Qc8 {[%clk 0:02:44]} 10. Re1 {[%clk 0:02:59]}  Ne4 {[%clk 0:02:42]} 11. Nxe4 {[%clk 0:02:58]}  Bxe4 {[%clk 0:02:42]} 12. Bh6 {[%clk 0:02:56]}  Bf6 {[%clk 0:02:35]} 13. Qf4 {[%clk 0:02:54]}  Qf5 {[%clk 0:02:23]} 14. Qc7 {[%clk 0:02:44]}  Qd7 {[%clk 0:02:20]} 15. Qxd7 {[%clk 0:02:37]}  Nxd7 {[%clk 0:02:21]} 16. Bh3 {[%clk 0:02:37]}  Nb6 {[%clk 0:02:11]} 17. Nd2 {[%clk 0:02:36]}  Bf5 {[%clk 0:02:11]} 18. Bxf5 {[%clk 0:02:29]}  gxf5 {[%clk 0:02:12]} 19. Bf4 {[%clk 0:02:25]}  a5 {[%clk 0:02:04]} 20. a4 {[%clk 0:02:24]}  Nd7 {[%clk 0:01:57]} 21. Kg2 {[%clk 0:02:24]}  e6 {[%clk 0:01:57]} 22. e3 {[%clk 0:02:21]}  Be7 {[%clk 0:01:53]} 23. h3 {[%clk 0:02:20]}  Nf8 {[%clk 0:01:53]} 24. Kf3 {[%clk 0:02:17]}  Ng6 {[%clk 0:01:53]} 25. g4 {[%clk 0:02:16]}  fxg4+ {[%clk 0:01:50]} 26. hxg4 {[%clk 0:02:16]}  Nxf4 {[%clk 0:01:50]} 27. exf4 {[%clk 0:02:12]}  Bd6 {[%clk 0:01:48]} 28. Rh1 {[%clk 0:02:10]}  Reb8 {[%clk 0:01:35]} 29. Rh5 {[%clk 0:01:58]}  b5 {[%clk 0:01:30]} 30. axb5 {[%clk 0:01:46]}  Rxb5 {[%clk 0:01:30]} 31. b3 {[%clk 0:01:43]}  a4 {[%clk 0:01:27]} 32. bxa4 {[%clk 0:01:42]}  Rb2 {[%clk 0:01:26]} 33. Nf1 {[%clk 0:01:37]}  Rc2 {[%clk 0:01:25]} 34. Ne3 {[%clk 0:01:12]}  Rxc3 {[%clk 0:01:26]} 35. f5 {[%clk 0:01:11]}  e5 {[%clk 0:01:19]} 36. f6 {[%clk 0:01:02]}  exd4 {[%clk 0:01:02]} 37. Rah1 {[%clk 0:01:01]}  Be5 {[%clk 0:00:13]} 38. Rxe5 {[%clk 0:00:52]}  dxe3 {[%clk 0:00:14]} 39. Rg5+ {[%clk 0:00:50]}  Kf8 {[%clk 0:00:13]} 40. Rxh7 {[%clk 0:00:50]}  exf2+ {[%clk 0:00:11]} 41. Kxf2 {[%clk 0:00:50]}  Rc2+ {[%clk 0:00:06]} 42. Kg3 {[%clk 0:00:50]}  Rc3+ {[%clk 0:00:03]} 43. Kh4 {[%clk 0:00:50]} 1-0


[Site "https://www.chess.com"]

[Event "Titled Tuesday Blitz March 14 Early 2023"]
[White "Zhigalko, Sergei"]
[Black "Seo, Jung Min"]
[WhiteFideId "13502956"]
[BlackFideId "1734687"]
[WhiteElo "2626"]
[BlackElo "2468"]
[Result "1-0"]
[Round "06"]
[TimeControl "180+2"]
[Date "2023.03.14"]
[WhiteClock "0:00:05"]
[BlackClock "0:01:06"]

1. e4 {[%clk 0:03:00]}  e5 {[%clk 0:02:59]} 2. Nf3 {[%clk 0:03:01]}  Nc6 {[%clk 0:02:59]} 3. Bc4 {[%clk 0:03:01]}  Nf6 {[%clk 0:02:58]} 4. d3 {[%clk 0:03:02]}  h6 {[%clk 0:02:55]} 5. O-O {[%clk 0:02:59]}  Bc5 {[%clk 0:02:54]} 6. Nbd2 {[%clk 0:02:56]}  d6 {[%clk 0:02:53]} 7. c3 {[%clk 0:02:56]}  O-O {[%clk 0:02:52]} 8. Bb3 {[%clk 0:02:55]}  a6 {[%clk 0:02:49]} 9. Re1 {[%clk 0:02:53]}  Ba7 {[%clk 0:02:49]} 10. Nf1 {[%clk 0:02:53]}  Re8 {[%clk 0:02:48]} 11. Be3 {[%clk 0:02:43]}  Bxe3 {[%clk 0:02:46]} 12. Nxe3 {[%clk 0:02:44]}  Be6 {[%clk 0:02:46]} 13. h3 {[%clk 0:02:35]}  Bxb3 {[%clk 0:02:45]} 14. Qxb3 {[%clk 0:02:35]}  Qd7 {[%clk 0:02:44]} 15. Rad1 {[%clk 0:02:34]}  b6 {[%clk 0:02:41]} 16. Nh4 {[%clk 0:01:57]}  Ne7 {[%clk 0:02:39]} 17. Qc2 {[%clk 0:01:25]}  Nc6 {[%clk 0:02:32]} 18. Nhf5 {[%clk 0:01:03]}  Kh7 {[%clk 0:02:26]} 19. d4 {[%clk 0:00:50]}  g6 {[%clk 0:02:21]} 20. Ng3 {[%clk 0:00:50]}  Qe7 {[%clk 0:02:19]} 21. Nd5 {[%clk 0:00:49]}  Qd8 {[%clk 0:02:01]} 22. a3 {[%clk 0:00:30]}  Nd7 {[%clk 0:01:44]} 23. f4 {[%clk 0:00:27]}  Ne7 {[%clk 0:01:35]} 24. dxe5 {[%clk 0:00:25]}  Nxd5 {[%clk 0:01:31]} 25. Rxd5 {[%clk 0:00:21]}  Qh4 {[%clk 0:01:25]} 26. Qf2 {[%clk 0:00:21]}  Nc5 {[%clk 0:01:13]} 27. exd6 {[%clk 0:00:20]}  cxd6 {[%clk 0:01:13]} 28. Rxd6 {[%clk 0:00:21]}  Rad8 {[%clk 0:01:13]} 29. Red1 {[%clk 0:00:13]}  Rxd6 {[%clk 0:01:13]} 30. Rxd6 {[%clk 0:00:14]}  b5 {[%clk 0:01:12]} 31. e5 {[%clk 0:00:06]}  Ne6 {[%clk 0:01:07]} 32. Rd7 {[%clk 0:00:06]}  Kg7 {[%clk 0:01:06]} 33. Nf5+ {[%clk 0:00:05]} 1-0


[Site "https://www.chess.com"]